Cogmind - Beta 17 @@@ ROGUE MODE // 2026.07.24 @ 21:49:05 Player: Sinthome Result: Destroyed self with Subdweller Shrapnel Launcher Performance ------------- Evolutions (0) 0 Regions Visited (2) 400 Robots Destroyed (27) 135 Value Destroyed (723) 723 Prototype IDs (1) 20 Alien Tech Used (0) 0 Bonus (5150) 5150 TOTAL SCORE: 6428 Bonus ------- Prayed to X0-1V1 5000 Major X0-1V1 Interference 150 Cogmind --------- Core Integrity 0/170 Matter 392/900 Energy 1395/1400 System Corruption 1% Temperature Cool (0) Movement Rolling (130) Ox2 Location -10/Subcaves Parts ------- > --- POWER (1) -------- Subdweller Power Source > --- PROPULSION (2) --- Aluminum Leg Compact Wheel > --- UTILITY (2) ------ Large Storage Unit X0-1V1's Piety Tracker > --- WEAPON (2) ------- Rocket Launcher (fused) Subdweller Shrapnel Launcher > --- INVENTORY (15) --- Light Ion Engine Light Nuclear Core Heat Sink Disposable Heat Sink Medium Storage Unit Large Storage Unit Medium Matter Pod (100) Subdweller Optics Signal Interpreter Propulsion Shielding Light Armor Plating Light Armor Plating Subdweller Machine Gun Subdweller Machine Gun Peak State ------------ > --- POWER ------------ Subdweller Power Source > --- PROPULSION ------- Aluminum Leg Aluminum Leg > --- UTILITY ---------- Large Storage Unit X0-1V1's Piety Tracker > --- WEAPON ----------- Riot Gun Makeshift Axe > --- INVENTORY -------- Light Ion Engine Light Nuclear Core Compact Wheel Heat Sink Disposable Heat Sink Medium Storage Unit Large Storage Unit Medium Matter Pod Subdweller Optics Signal Interpreter Propulsion Shielding Light Armor Plating Subdweller Machine Gun Subdweller Machine Gun Subdweller Shrapnel Launcher [Rating: 27] Favorites ----------- Power Light Nuclear Core Engine Ion Engine Power Core Light Nuclear Core Propulsion Aluminum Leg Leg Aluminum Leg Wheel Compact Wheel Utility Large Storage Unit Device X0-1V1's Piety Tracker Storage Large Storage Unit Weapon Light Cannon Energy Gun Small Laser Ballistic Gun Subdweller Machine Gun Ballistic Cannon Light Cannon Launcher Subdweller Shrapnel Launcher Slashing Weapon Makeshift Axe Build | -11 -10 -10 ------- Run | Yrd Mat Sub Slots Evolved . | . . . Power . | . . . Propulsion . | . . . Utility . | . . . Weapon . | . . . Parts Attached 22 | 7 8 7 Power 4 | 1 2 1 Engine 2 | 1 . 1 Core 2 | . 2 . Reactor . | . . . Propulsion 6 | 2 2 2 Treads . | . . . Leg 5 | 2 2 1 Wheel 1 | . . 1 Hover . | . . . Flight . | . . . Utility 4 | 2 2 . Device 2 | 1 1 . Storage 2 | 1 1 . Processor . | . . . Hackware . | . . . Protection . | . . . Artifact . | . . . Weapon 8 | 2 2 4 Energy Gun 3 | 2 . 1 Energy Cannon . | . . . Ballistic Gun 1 | . . 1 Ballistic Cannon 2 | . 2 . Launcher 1 | . . 1 Special Weapon . | . . . Impact Weapon . | . . . Slashing Weapon 1 | . . 1 Piercing Weapon . | . . . Special Melee Weapon . | . . . Unidentified Prototypes 1 | . 1 . Parts Lost 8 | . 3 5 Power 1 | . 1 . Propulsion 2 | . . 2 Utility . | . . . Weapon 5 | . 2 3 Highest Loss Streak 3 | . 2 3 To Critical Strikes . | . . . Average Backups 13 | 4 12 14 Power 1 | 1 1 2 Propulsion 2 | 3 2 1 Utility 7 | . 6 9 Weapon 1 | . 1 1 Tool/Special . | . . . Unused Backups 23 | . 6 17 Power 2 | . 1 1 Propulsion 5 | . 5 . Utility 13 | . . 13 Weapon 3 | . . 3 Tool/Special . | . . . Average Slot Usage (%) 98 | . 98 99 Engine 7 | . 3 12 Core 5 | . 9 1 Leg 26 | . 27 26 Device 14 | . 14 14 Storage 14 | . 14 14 Energy Gun 11 | . 16 6 Ballistic Gun 2 | . . 4 Ballistic Cannon 13 | . 10 15 Peak Build Rating 27 | 7 22 27 Average Rating 15 | 5 10 22 On Entrance 9 | . 7 22 Avg Prop Armor Cover (%) 11 | . . 11 Naked Turns . | . . . Heaviest Build 33 | 14 32 33 Greatest Support 20 | 20 20 20 Greatest Overweight (x) 3 | 3 1 3 Average Overweight (x) . | . . 1 Largest Inventory Capacity 15 | 8 15 15 Average Capacity 14 | 7 14 15 Most Carried 15 | 7 15 15 Average Carried 13 | 4 12 14 Final Capacity 15 | 8 15 15 Final Carried 15 | 7 15 14 Class Distribution -------------------- 77% | Mutant 22% | Scavenger-Mutant Dominant Class ---------------- Mutant | -10/Materials Mutant | -10/Subcaves Resources | -11 -10 -10 ----------- Run | Yrd Mat Sub Matter Collected 895 | 270 202 423 Remotely . | . . . Salvage Created 933 | 187 537 209 Parts 46 | 12 26 8 Haulers Intercepted 1 | . 1 . Recyclers Shooed 1 | . 1 . Parts Field Recycled . | . . . Retrieved Matter . | . . . Parts Self-Destructed 6 | . . 6 Prevented . | . . . Parts Restored . | . . . Kills | -11 -10 -10 ------- Run | Yrd Mat Sub Combat Hostiles Destroyed 18 | . 12 6 Guns 7 | . 5 2 Cannons 9 | . 6 3 AOE 2 | . 1 1 Classes Destroyed 9 | 2 5 2 Tunneler 3 | 3 . . Hauler 1 | . 1 . Recycler 2 | 1 1 . Operator 1 | . 1 . Watcher 2 | . 2 . Swarmer 3 | . 3 . Grunt 9 | . 9 . Sentry 1 | . . 1 Subdweller 5 | . . 5 Best Kill Streak 3 | 3 3 2 Combat Bots Only 3 | . 3 2 Max Kills in Single Turn 2 | 2 1 1 Gunslinging . | . . . Exploded 1 | . 1 1 Melee . | . . . Uniques/NPCs Destroyed . | . . . Combat | -11 -10 -10 -------- Run | Yrd Mat Sub Hostile Shots Fired 120 | . 73 47 Missed 29 | . 14 15 Hits 91 | . 59 32 Projectile 91 | . 59 32 Critical Strikes 1 | . . 1 Damage Taken 1435 | . 746 689 Core 262 | . 175 87 Absorbed by Shields . | . . . Regen/Repaired (Parts) 211 | . 211 . Core Remaining (%) 100 | 100 . . Volleys Fired 107 | 4 73 30 Largest 2 | 2 2 2 Hottest 80 | 80 80 80 Shots Fired 203 | 6 143 54 Gun 122 | 6 98 18 Cannon 80 | . 45 35 Launcher 1 | . . 1 Special . | . . . Kinetic 87 | . 45 42 Thermal 64 | 2 62 . Explosive . | . . . Electromagnetic 52 | 4 36 12 Robot Hit Streak 21 | 4 8 21 Robot Miss Streak 3 | . 3 2 Penetration Max . | . . . Secondary Targets . | . . . Shots Hit Robots 115 | 4 77 34 Core Hits 42 | 5 26 11 Critical Kills . | . . . Critical Parts Destroyed . | . . . Critical Strikes 4 | . 2 2 Blast 4 | . 2 2 Melee Attacks 1 | . . 1 Impact . | . . . Slashing 1 | . . 1 Piercing . | . . . Sneak Attacks . | . . . Combat Hostiles . | . . . Follow-up Attacks . | . . . Damage Inflicted 1881 | 62 1190 629 Guns 816 | 62 622 132 Cannons 849 | . 464 385 Explosions 216 | . 104 112 Melee . | . . . Ramming . | . . . Kinetic 978 | . 464 514 Thermal 432 | 11 421 . Explosive . | . . . Electromagnetic 471 | 51 305 115 Impact . | . . . Slashing . | . . . Piercing . | . . . Highest Corruption 1 | . 1 1 Average Corruption 1 | . 1 1 Corruption Purged . | . . . Corruption Blocked . | . . . Effects 12 | . 4 8 Message Errors 5 | . 2 3 Matter Fused 3 | . 1 2 Heat Flow Errors 2 | . . 2 Data Loss (minor) 1 | . . 1 Misfires 1 | . 1 . Overload Shots . | . . . Overflow Damage 22 | . 22 . Projectiles 15 | . 15 . Explosions 7 | . 7 . Melee . | . . . Knockbacks 14 | . 9 5 Impact . | . . . Kinetic 14 | . 9 5 Secondary . | . . . Self-Inflicted Damage 48 | . . 48 Shots 1 | . . 1 Rammed . | . . . Targets Rammed . | . . . Kicked . | . . . Crushed . | . . . Highest Temperature 204 | 18 204 186 Average Temperature 61 | 12 61 100 Received Heat Transfer 552 | . 369 183 Siege Activations . | . . . Martial Activations . | . . . Shielding Activations . | . . . Robots Disrupted . | . . . Combat Hostiles . | . . . Robots Corrupted . | . . . Combat Hostiles . | . . . Parts Fried . | . . . Impact Corruptions . | . . . Robots Melted . | . . . Combat Hostiles . | . . . Parts Melted 3 | . 2 1 Heat Transferred 900 | 25 875 . Parts Sabotaged . | . . . Parts Stolen . | . . . Parts Stripped . | . . . Power Chain Reactions 3 | . 3 . Alert | -11 -10 -10 ------- Run | Yrd Mat Sub Maximum Alert Level . | . . . Low Security (%) 100 | 100 100 . Level 1 . | . . . Level 2 . | . . . Level 3 . | . . . Level 4 . | . . . Level 5 . | . . . High Security . | . . . Max Security . | . . . Peak Influence 90 | 10 90 . Initial . | . . . Average 24 | 2 26 . Influence Increases 429 | 20 389 20 Destroy 0b10 Robot/C 260 | . 240 20 Destroy 0b10 Robot/NC 45 | 20 25 . Destroy Leader 66 | . 66 . Successful Hack 4 | . 4 . Disable Machine 30 | . 30 . Destroy Structure 9 | . 9 . Lose Combat Pursuer 15 | . 15 . Influence Decreases 429 | 20 389 20 Time Decay 403 | 20 363 20 Lost Part 26 | . 26 . Squads Dispatched 2 | . 2 . Investigation 1 | . 1 . Extermination . | . . . Reinforcement 1 | . 1 . Assault . | . . . Garrison . | . . . Intercept . | . . . Searches Triggered . | . . . Construction Impeded . | . . . Haulers Reinforced . | . . . Active Scanning Responses . | . . . Cargo Convoy Interrupts . | . . . Stealth | -11 -10 -10 --------- Run | Yrd Mat Sub Distress Signals 1 | . 1 . Communications Jammed . | . . . Distress Signals . | . . . Times Spotted 31 | . 24 7 Peak Tracking Total 3 | . 3 2 Tactical Retreats 1 | . 1 . Traps | -11 -10 -10 ------- Run | Yrd Mat Sub Traps Triggered 3 | . 3 . Indirectly . | . . . Trap Hack Attempts . | . . . Triggered . | . . . Disarmed . | . . . Reprogrammed . | . . . Reused . | . . . Traps Extracted . | . . . Installed . | . . . Triggered . | . . . Machines | -11 -10 -10 ---------- Run | Yrd Mat Sub Machines Disabled 2 | . 2 . Max in Single Turn 1 | . 1 . Machines Repaired . | . . . Machines Dismantled . | . . . Machines Sabotaged . | . . . Overloaded Fab Kills . | . . . Hacking | -11 -10 -10 --------- Run | Yrd Mat Sub Machines Accessed 4 | . 4 . Terminals 1 | . 1 . Fabricators . | . . . Repair Stations 1 | . 1 . Recycling Units 2 | . 2 . Scanalyzers . | . . . Garrison Access . | . . . Total Hacks 14 | . 14 . Successful 9 | . 9 . Failed 5 | . 5 . Catastrophic . | . . . Database Lockouts . | . . . Manual 1 | . 1 . Terminals 2 | . 2 . Fabricators . | . . . Repair Stations 8 | . 8 . Recycling Units 4 | . 4 . Scanalyzers . | . . . Garrison Access . | . . . Terminal Hacks 1 | . 1 . Emergency Access Points 1 | . 1 . Fabricator Hacks . | . . . Repair Station Hacks 7 | . 7 . Scan Component 4 | . 4 . Repair 3 | . 3 . Recycling Unit Hacks 1 | . 1 . Retrieve Components 1 | . 1 . Scanalyzer . | . . . Garrison Access Hacks . | . . . Unauthorized Hacks . | . . . Terminals . | . . . Fabricators . | . . . Repair Stations . | . . . Recycling Units . | . . . Scanalyzers . | . . . Garrison Access . | . . . Data Cores Recovered . | . . . Used . | . . . Hacking Detections 2 | . 2 . Full Trace Events . | . . . Feedback Events . | . . . Feedback Blocked . | . . . Robot Schematics Acquired . | . . . Robots Built . | . . . Authchips . | . . . Time . | . . . Total Robot Build Rating . | . . . Part Schematics Acquired . | . . . Parts Built . | . . . Authchips . | . . . Time . | . . . Total Part Build Rating . | . . . Part Studies Acquired . | . . . Parts Repaired 3 | . 3 . Time 78 | . 78 . Parts Recycled . | . . . Recycled Matter . | . . . Retrieved Matter . | . . . Retrieved Components 9 | . 9 . Parts Scanalyzed . | . . . Part Schematics Acquired . | . . . Parts Damaged . | . . . Bothacking | -11 -10 -10 ------------ Run | Yrd Mat Sub Used RIF Installer . | . . . Robots Hacked . | . . . Non-combat . | . . . Combat . | . . . Robot Hacks Applied . | . . . Relay Couplers Released . | . . . Fabnet Peak Effective % . | . . . Robots Rewired . | . . . Allies Hacked . | . . . Hacks Repelled . | . . . Allies | -11 -10 -10 -------- Run | Yrd Mat Sub Total Allies . | . . . Largest Group . | . . . Highest-Rated Group . | . . . Highest-Rated Ally . | . . . Total Orders . | . . . Ally Attacks . | . . . Total Damage . | . . . Kills . | . . . Allies Corrupted . | . . . Allies Melted . | . . . X0-1V1 Amusement Gains 108 | . 14 94 Good Acts 5 | . 1 4 Bad Acts 1 | . . 1 Intel | -11 -10 -10 ------- Run | Yrd Mat Sub Active Infowar (turns) 1024 | 25 999 . Seismic 1024 | 25 999 . Robot Analysis Total . | . . . Derelict Logs Recovered . | . . . Drone Launches . | . . . Drone Recoveries . | . . . Exploration | -11 -10 -10 ------------- Run | Yrd Mat Sub Turns Passed 2320 | 98 1174 1048 Spaces Moved 1004 | 58 438 508 Core 10 | 10 . . Treads . | . . . Legs 919 | 48 438 433 Wheels 75 | . . 75 Hover . | . . . Flight . | . . . Fastest Speed 50 | 50 120 115 Average Speed 176 | 122 179 179 Slowest Speed 330 | 200 190 330 Overloaded Moves . | . . . Propulsion Burnouts . | . . . Robots Hopped . | . . . Potential Cave-ins . | . . . Cave-ins Triggered . | . . . Exploration Rate (%) 34 | 4 57 42 Regions Visited 2 Branch Regions 1 Pre-discovered Areas . | . . . Known Exits Taken . | . . . Unknown Exits Taken 2 | 1 1 . Scrap Searched 4 | . . 4 Spaces Dug . | . . . Terrain Destroyed 8 | . 8 . Melee . | . . . Projectile . | . . . AOE 8 | . 8 . Terrain Rammed . | . . . Walls Destroyed . | . . . Machines Disabled . | . . . Actions | -11 -10 -10 --------- Run | Yrd Mat Sub Total 1356 | 75 687 594 Wait 165 | . 138 27 Move 1002 | 57 437 508 Hop . | . . . Pick Up 36 | 7 18 11 Fast Attach 11 | 7 4 . Attach 7 | . 2 5 Detach . | . . . Swap 9 | . 5 4 Drop 18 | . 10 8 Fire 107 | 4 73 30 Melee 1 | . . 1 Ram . | . . . Kick . | . . . Crush . | . . . Escape Stasis . | . . . Rewire . | . . . Trap . | . . . Miscellaneous . | . . . Route ------- -11/Scrapyard -10/Materials (discovered 4 exits: [*Mat x2] / [*Min] / [*Sub]) -10/Subcaves History --------- Turn | Location | Event 22 | -11/Scrapyard | Discovered new exit (range 15) 99 | -11/Scrapyard | Entered Materials 191 | -10/Materials | Discovered new exit (range 12) 304 | -10/Materials | Build established: Mutant 358 | -10/Materials | Discovered new exit (range 7) 470 | -10/Materials | Discovered new exit (range 16) 830 | -10/Materials | Build established: Scavenger-Mutant 972 | -10/Materials | Repaired Aluminum Leg 999 | -10/Materials | Repaired Aluminum Leg 1034 | -10/Materials | Core integrity fell below 50% 1076 | -10/Materials | Discovered new exit (range 6) 1098 | -10/Materials | Prayed at D.C.S.S. Altar Unit 1213 | -10/Materials | Repaired Lgt. Cannon 1257 | -10/Materials | X0-1V1 activates XOMVISION 1273 | -10/Materials | Entered Subcaves 1404 | -10/Subcaves | Build established: Mutant 1689 | -10/Subcaves | Shifting Twisted Machinery released Sub. Machine Gun 1691 | -10/Subcaves | Shifting Twisted Machinery released Riot Gun 1835 | -10/Subcaves | Ambushed by Subdwellers from Twisted Machinery 1888 | -10/Subcaves | Lost 3 parts (1n2w) 1910 | -10/Subcaves | Melee accuracy permanently improved by X0-1V1 (+8%; -80 max core) 2119 | -10/Subcaves | Shifting Twisted Machinery released Sub. Shrapnel Launcher 2139 | -10/Subcaves | Shifting Twisted Machinery released Sub. Optics 2313 | -10/Subcaves | Ambushed by Subdwellers from Twisted Machinery 2321 | -10/Subcaves | Destroyed self with Subdweller Shrapnel Launcher Last Messages --------------- Sub. Optics falls loose from the Twisted Machinery. 02142_ Dropped ECM Suite. 02142_ Acquired Sub. Shrapnel Launcher. 02220_ Aluminum Leg destroyed. 02220_ Y-45 Defender destroyed. 02222_ Acquired 60 matter. 02225_ Lgt. Treads fries itself beyond repair. 02228_ Acquired Lgt. Armor Plating. 02231_ Subatomizers dissect the Heat Sink. 02236_ Heat Sink fries itself beyond repair. 02271_ WU-1VA(u) deconstructs Twisted Machinery. 02313_ 4D-07K(R) emerges from the Twisted Machinery. 02316_ LLYHNN1|JCSL3MEYE1/ HU3SXM|BJ 02318_ Riot Gun destroyed. 02321_ Mak. Axe tossed aside. 02321_ X0-1V1 ensures you are ready for glorious battle (+Rocket Launcher). 02321_ Sub. Power Source melted. 02321_ 4D-07K(R) destroyed. 02321_ X0-1V1 snickers! Map ----- +----------------------------------------------------+ | ????????????????????""" #???????????????? | | ????????????????????"""" #???????????????? | | ?????????????#?????#" " #???????????????? | | ?????????????? #??###### ##??????????????? | | ?????????????? ??????## #??????????????? | | ??????????????# "?###### #??????????????? | | ?????????????## "## # #??????????????? | | ?????????????# """ ##?????????????? | | ????????????# #?????????????? | | ???????????# #### # #?????????????? | | ?????????????????????## ## #?????????????? | | ?????????????????????## ### #?????????????? | | ?????????????????????# ### #?????????????? | | ?????????????????????## #?### #?????????????? | | ?????????????????????## #???# ##?????????????? | | ?????????????????????# #??# #??????????????? | | ?????????????????????# #??### ###??????????????? | | ?????????????????????## #????###????????????????? | | ??????????????????????# #???????????????????????? | | ?????????????????????## #???????????????????????? | | ???????????????????### #???????????????????????? | | ??????????????????## #???????????????????????? | | ????????????????### ##??????????????????????? | | ????????????????# ###????????????????????? | | ????????????????## #####????????????????? | | ?????????????????## @ #????????????????? | | ??????????????????# %## ?????????? | | ?????????????? R &#?# " ????????? | | ??????????? "?? " "#### #????????? | | ??????????? # # O ???" #??????????????? | | ?????????????##?## ## ????"""#??????????????? | | ?????????????????###?# ????"##??????????????? | | ?????????????????????# ?????#???????????????? | | ????????????????????? ]?????????????????????? | | ????????????????????? ## ?????????????????????? | | ???????????????????? ?? ?????????????????????? | | ???????????????????? ?? ?????????????????????? | | ??????????????????? ?? ?????????????????????? | | ???????????????????# ??? ?????????????????????? | | ?????????????????????#???????????????????????????? | | ?????????????????????????????????????????????????? | | ?????????????????????????????????????????????????? | | ?????????????????????????????????????????????????? | | ?????????????????????????????????????????????????? | | ?????????????????????????????????????????????????? | | ?????????????????????????????????????????????????? | | ?????????????????????????????????????????????????? | | ?????????????????????????????????????????????????? | | ?????????????????????????????????????????????????? | | ?????????????????????????????????????????????????? | +----------------------------------------------------+ Best States ------------- Heat Dissipation 25 Energy Generation 15 Energy Capacity 1400 Matter Stores 422 Matter Capacity 900 Sight Range 16 Terrain Scan Density 10 Evasion (%) 55 Item Schematics ----------------- None Robot Schematics ------------------ None Fabricated ------------ Nothing Repaired ---------- Aluminum Leg | 26% | -10/Materials Aluminum Leg | 47% | -10/Materials Lgt. Cannon | 18% | -10/Materials Studied --------- None Alien Tech Used ----------------- None Achievements -------------- Ghost 'Em Challenges ------------ None Game ------ Seed ShadeMetafiberChronowheel Manual? 0 Play Time 00:29:27 Cumulative 45.2 hours Start 2026.07.24 @ 21:18:29 End 2026.07.24 @ 21:49:05 Sessions 1 Manual Loads 0 Difficulty Rogue Special Mode None Game No. 38 Rogue 38 Adventurer 0 Explorer 0 Win Type - Total 0 Types 0/0/0/0/0/0/0/0/0/0 Lore% 17 Gallery% 35 Achievement% 22 Wizard Run 0 Options --------- Layout 0 ASCII 0 Keyboard 0 Movement Numpad Keybinds 0 Fullscreen 1 Font 24/X11 Map View 76x50 Zoom Use 0% Tactical HUD 1 Map Filters NONE Filters NONE Steam 1 RUN: feb316f5-5dad-4057-9973-575b6c5a8904